Cogmind - Beta 13 @@@ ROGUE MODE // 2024.04.19 @ 10:53:46 Player: Zaros426 Result: Destroyed by D-53 Grenadier with Mini Grenade Launcher Performance ------------- Evolutions (0) 0 Regions Visited (4) 800 Robots Destroyed (9) 45 Value Destroyed (113) 113 Prototype IDs (23) 460 Alien Tech Used (0) 0 Bonus (352) 352 TOTAL SCORE: 1770 Bonus ------- Follower Combat Kills 52 Aligned with FarCom 300 Cogmind --------- Core Integrity 0/250 Matter 223/300 Energy 86/100 System Corruption 0% Temperature Cool (0) Movement Core (350) Ox6 Location -9/Mines Parts ------- > --- POWER (1) -------- (None) > --- PROPULSION (2) --- (None) > --- UTILITY (2) ------ Large Storage Unit > --- WEAPON (2) ------- (None) > --- INVENTORY (15) --- Large Storage Unit High-capacity Battery (250) High-capacity Matter Pod (200) Signal Interpreter Improved Terrain Scanner Terrain Scan Processor Guided Plasma Cannon Autogun Autogun Makeshift Shrapnel Gun Maul Maul Peak State ------------ > --- POWER ------------ Ion Engine > --- PROPULSION ------- Light Treads Light Treads > --- UTILITY ---------- Large Storage Unit Seismic Detector > --- WEAPON ----------- Autogun Makeshift Shrapnel Gun > --- INVENTORY -------- Light Treads Heat Sink Large Storage Unit High-capacity Matter Pod Signal Interpreter Improved Terrain Scanner Autogun Autogun Autogun Grenade Launcher Mining Laser Maul Maul [Rating: 13] Favorites ----------- Power Ion Engine Engine Ion Engine Propulsion Light Treads Treads Light Treads Utility Seismic Detector Device Seismic Detector Storage Large Storage Unit Processor Signal Interpreter Weapon Autogun Ballistic Gun Autogun Launcher Grenade Launcher Special Weapon Mining Laser Impact Weapon Maul Build | -11 -10 -10 -10 -9 ------- Run | Yrd Mat Min Exi Min Slots Evolved . | . . . . . Power . | . . . . . Propulsion . | . . . . . Utility . | . . . . . Weapon . | . . . . . Parts Attached 26 | 6 4 9 . 7 Power 1 | 1 . . . . Engine 1 | 1 . . . . Core . | . . . . . Reactor . | . . . . . Propulsion 4 | 2 . . . 2 Treads 4 | 2 . . . 2 Leg . | . . . . . Wheel . | . . . . . Hover . | . . . . . Flight . | . . . . . Utility 6 | 2 2 2 . . Device 3 | 1 . 2 . . Storage 2 | 1 1 . . . Processor 1 | . 1 . . . Hackware . | . . . . . Protection . | . . . . . Artifact . | . . . . . Weapon 15 | 1 2 7 . 5 Energy Gun . | . . . . . Energy Cannon . | . . . . . Ballistic Gun 9 | 1 2 4 . 2 Ballistic Cannon . | . . . . . Launcher 1 | . . . . 1 Special Weapon 1 | . . 1 . . Impact Weapon 4 | . . 2 . 2 Slashing Weapon . | . . . . . Piercing Weapon . | . . . . . Special Melee Weapon . | . . . . . Unidentified Prototypes . | . . . . . Parts Lost 9 | . . . . 9 Power 1 | . . . . 1 Propulsion 4 | . . . . 4 Utility 1 | . . . . 1 Weapon 3 | . . . . 3 Highest Loss Streak 9 | . . . . 9 To Critical Strikes . | . . . . . Average Slot Usage (%) 99 | . 91 100 100 97 Engine 13 | . 14 14 14 13 Treads 27 | . 28 28 28 27 Device 13 | . 14 13 14 13 Storage 14 | . 14 14 14 14 Ballistic Gun 19 | . 20 22 14 18 Impact Weapon 7 | . . 4 14 8 Naked Turns . | . . . . . Heaviest Build 32 | 13 32 32 32 32 Greatest Support 40 | 40 40 40 40 40 Greatest Overweight (x) 1 | . . . . 1 Average Overweight (x) . | . . . . . Largest Inventory Capacity 15 | 8 15 15 15 15 Average Capacity 14 | 7 14 15 15 15 Most Carried 15 | 1 7 13 15 15 Average Carried 12 | . 3 10 14 14 Final Capacity 15 | 8 15 15 15 15 Final Carried 15 | 1 7 13 15 12 Class Distribution -------------------- 100% | Mutant Dominant Class ---------------- Mutant | -10/Materials Mutant | -10/Mines Mutant | -10/Exiles Mutant | -9/Mines Resources | -11 -10 -10 -10 -9 ----------- Run | Yrd Mat Min Exi Min Matter Collected 515 | 262 40 195 . 18 Remotely . | . . . . . Salvage Created 179 | 18 40 69 . 52 Parts 20 | 3 4 9 . 4 Haulers Intercepted . | . . . . . Recyclers Shooed 1 | 1 . . . . Parts Field Recycled . | . . . . . Retrieved Matter . | . . . . . Parts Self-Destructed . | . . . . . Prevented . | . . . . . Kills | -11 -10 -10 -10 -9 ------- Run | Yrd Mat Min Exi Min Combat Hostiles Destroyed 5 | . . 3 . 2 Guns 5 | . . 3 . 2 Classes Destroyed 7 | 1 2 2 . 2 Builder 2 | . . 2 . . Tunneler 1 | 1 . . . . Operator 1 | . 1 . . . Watcher 1 | . 1 . . . Swarmer 3 | . . 3 . . Grunt 1 | . . . . 1 Assembled 1 | . . . . 1 Best Kill Streak 3 | 1 1 3 . 1 Combat Bots Only 3 | . . 3 . 1 Max Kills in Single Turn 1 | 1 1 1 . 1 Gunslinging . | . . . . . Exploded . | . . . . . Melee . | . . . . . Uniques/NPCs Destroyed . | . . . . . Combat | -11 -10 -10 -10 -9 -------- Run | Yrd Mat Min Exi Min Hostile Shots Fired 74 | . . 9 . 65 Missed 20 | . . 3 . 17 Damage Taken 1356 | . . 50 . 1306 Core 289 | . . 19 . 270 Absorbed by Shields . | . . . . . Core Remaining (%) 100 | 100 . . . . Volleys Fired 33 | 8 7 10 . 8 Largest 2 | 1 2 2 . 2 Hottest 100 | 20 46 100 . 53 Shots Fired 49 | 8 9 16 . 16 Gun 45 | 8 9 13 . 15 Cannon . | . . . . . Launcher 1 | . . . . 1 Special 3 | . . 3 . . Kinetic 45 | 8 9 13 . 15 Thermal 3 | . . 3 . . Explosive 1 | . . . . 1 Electromagnetic . | . . . . . Robot Hit Streak 4 | 4 1 4 . 3 Robot Miss Streak 3 | 1 2 1 . 3 Penetration Max . | . . . . . Secondary Targets . | . . . . . Shots Hit Robots 25 | 7 3 7 . 8 Core Hits 11 | 1 2 4 . 4 Critical Kills . | . . . . . Critical Parts Destroyed . | . . . . . Critical Strikes . | . . . . . Melee Attacks 36 | . . 34 . 2 Impact 36 | . . 34 . 2 Slashing . | . . . . . Piercing . | . . . . . Sneak Attacks 1 | . . 1 . . Combat Hostiles . | . . . . . Follow-up Attacks . | . . . . . Damage Inflicted 410 | 90 42 147 . 131 Guns 338 | 90 42 90 . 116 Cannons . | . . . . . Explosions 15 | . . . . 15 Melee 56 | . . 56 . . Ramming 1 | . . 1 . . Kinetic 338 | 90 42 90 . 116 Thermal . | . . . . . Explosive 15 | . . . . 15 Electromagnetic . | . . . . . Impact 56 | . . 56 . . Slashing . | . . . . . Piercing . | . . . . . Highest Corruption . | . . . . . Average Corruption . | . . . . . Corruption Purged . | . . . . . Corruption Blocked . | . . . . . Overload Shots . | . . . . . Overflow Damage 16 | . . 16 . . Projectiles . | . . . . . Explosions . | . . . . . Melee 16 | . . 16 . . Knockbacks . | . . . . . Impact . | . . . . . Kinetic . | . . . . . Secondary . | . . . . . Self-Inflicted Damage . | . . . . . Shots . | . . . . . Rammed 1 | . . 1 . . Targets Rammed 1 | . . 1 . . Kicked . | . . . . . Crushed . | . . . . . Highest Temperature 32 | . 6 20 . 32 Average Temperature 8 | . 4 8 . 8 Received Heat Transfer 60 | . . . . 60 Siege Activations . | . . . . . Robots Corrupted . | . . . . . Combat Hostiles . | . . . . . Parts Fried . | . . . . . Impact Corruptions 1 | . . 1 . . Robots Melted . | . . . . . Combat Hostiles . | . . . . . Parts Melted . | . . . . . Heat Transferred . | . . . . . Parts Sabotaged . | . . . . . Parts Stolen . | . . . . . Parts Stripped . | . . . . . Power Chain Reactions . | . . . . . Alert | -11 -10 -10 -10 -9 ------- Run | Yrd Mat Min Exi Min Peak Influence 94 | 5 64 94 . 74 Initial 24 | . 3 24 . . Average 17 | 2 35 15 . 19 Maximum Alert Level . | . . . . . Low Security (%) 100 | 100 100 100 . 100 Level 1 . | . . . . . Level 2 . | . . . . . Level 3 . | . . . . . Level 4 . | . . . . . Level 5 . | . . . . . High Security . | . . . . . Max Security . | . . . . . Squads Dispatched . | . . . . . Investigation . | . . . . . Extermination . | . . . . . Reinforcement . | . . . . . Assault . | . . . . . Garrison . | . . . . . Intercept . | . . . . . Searches Triggered . | . . . . . Construction Impeded . | . . . . . Haulers Reinforced . | . . . . . Active Scanning Responses . | . . . . . Cargo Convoy Interrupts . | . . . . . Stealth | -11 -10 -10 -10 -9 --------- Run | Yrd Mat Min Exi Min Distress Signals . | . . . . . Communications Jammed . | . . . . . Distress Signals . | . . . . . Times Spotted 30 | . 3 3 . 24 Peak Tracking Total 14 | . 1 3 . 14 Tactical Retreats . | . . . . . Traps | -11 -10 -10 -10 -9 ------- Run | Yrd Mat Min Exi Min Traps Triggered . | . . . . . Indirectly . | . . . . . Trap Hack Attempts . | . . . . . Triggered . | . . . . . Disarmed . | . . . . . Reprogrammed . | . . . . . Reused . | . . . . . Traps Extracted . | . . . . . Installed . | . . . . . Triggered . | . . . . . Machines | -11 -10 -10 -10 -9 ---------- Run | Yrd Mat Min Exi Min Machines Disabled . | . . . . . Max in Single Turn . | . . . . . Machines Repaired . | . . . . . Machines Dismantled . | . . . . . Machines Sabotaged . | . . . . . Overloaded Fab Kills . | . . . . . Hacking | -11 -10 -10 -10 -9 --------- Run | Yrd Mat Min Exi Min Machines Accessed 5 | . 3 . 2 . Terminals 3 | . 3 . . . Fabricators . | . . . . . Repair Stations . | . . . . . Recycling Units . | . . . . . Scanalyzers . | . . . . . Garrison Access . | . . . . . Total Hacks 31 | . 7 . 24 . Successful 27 | . 3 . 24 . Failed 4 | . 4 . . . Catastrophic 1 | . 1 . . . Database Lockouts . | . . . . . Manual 6 | . 5 . 1 . Terminals 7 | . 7 . . . Fabricators . | . . . . . Repair Stations . | . . . . . Recycling Units . | . . . . . Scanalyzers . | . . . . . Garrison Access . | . . . . . Terminal Hacks 27 | . 3 . 24 . Record 23 | . . . 23 . Emergency Access Points 1 | . 1 . . . Locate Traps 2 | . 2 . . . Derelict Proto ID Bank 1 | . . . 1 . Fabricator Hacks . | . . . . . Repair Station Hacks . | . . . . . Recycling Unit Hacks . | . . . . . Scanalyzer . | . . . . . Garrison Access Hacks . | . . . . . Unauthorized Hacks . | . . . . . Terminals . | . . . . . Fabricators . | . . . . . Repair Stations . | . . . . . Recycling Units . | . . . . . Scanalyzers . | . . . . . Garrison Access . | . . . . . Data Cores Recovered 1 | . 1 . . . Used 1 | . 1 . . . Hacking Detections 2 | . 2 . . . Full Trace Events . | . . . . . Feedback Events . | . . . . . Feedback Blocked . | . . . . . Robot Schematics Acquired . | . . . . . Robots Built . | . . . . . Authchips . | . . . . . Time . | . . . . . Total Robot Build Rating . | . . . . . Part Schematics Acquired . | . . . . . Parts Built . | . . . . . Authchips . | . . . . . Time . | . . . . . Total Part Build Rating . | . . . . . Parts Repaired . | . . . . . Time . | . . . . . Parts Recycled . | . . . . . Recycled Matter . | . . . . . Retrieved Matter . | . . . . . Retrieved Components . | . . . . . Parts Scanalyzed . | . . . . . Part Schematics Acquired . | . . . . . Parts Damaged . | . . . . . Bothacking | -11 -10 -10 -10 -9 ------------ Run | Yrd Mat Min Exi Min Used RIF Installer . | . . . . . Robots Hacked . | . . . . . Non-combat . | . . . . . Combat . | . . . . . Robot Hacks Applied . | . . . . . Relay Couplers Released . | . . . . . Fabnet Peak Effective % . | . . . . . Robots Rewired . | . . . . . Allies Hacked . | . . . . . Hacks Repelled . | . . . . . Allies | -11 -10 -10 -10 -9 -------- Run | Yrd Mat Min Exi Min Total Allies 3 | . . 1 . 2 Largest Group 2 | . . 1 . 2 Highest-Rated Group 42 | . . 31 . 42 Highest-Rated Ally 31 | . . 31 . 31 Total Orders . | . . . . . Ally Attacks 19 | . . . . 19 Total Damage 251 | . . . . 251 Kills 5 | . . . . 5 Allies Corrupted . | . . . . . Allies Melted . | . . . . . Intel | -11 -10 -10 -10 -9 ------- Run | Yrd Mat Min Exi Min Robot Analysis Total . | . . . . . Derelict Logs Recovered 2 | . . 2 . . Drone Launches . | . . . . . Drone Recoveries . | . . . . . Exploration | -11 -10 -10 -10 -9 ------------- Run | Yrd Mat Min Exi Min Turns Passed 4590 | 98 229 2138 1416 709 Spaces Moved 2648 | 47 124 1215 883 379 Core 5 | 5 . . . . Treads 2643 | 42 124 1215 883 379 Legs . | . . . . . Wheels . | . . . . . Hover . | . . . . . Flight . | . . . . . Fastest Speed 50 | 50 160 160 160 160 Average Speed 159 | 148 160 160 160 161 Slowest Speed 240 | 160 160 160 160 240 Overloaded Moves . | . . . . . Propulsion Burnouts . | . . . . . Robots Hopped . | . . . . . Cave-ins Triggered . | . . . . . Exploration Rate (%) 58 | 4 22 99 95 70 Regions Visited 4 Branch Regions 3 Pre-discovered Areas 3 | . . 2 1 . Known Exits Taken 1 | . 1 . . . Unknown Exits Taken 3 | 1 . 1 1 . Scrap Searched 4 | . . 2 . 2 Spaces Dug 27 | . . 25 . 2 Terrain Destroyed 28 | . . 25 . 3 Melee 24 | . . 22 . 2 Projectile 3 | . . 3 . . AOE 1 | . . . . 1 Terrain Rammed . | . . . . . Walls Destroyed . | . . . . . Machines Disabled . | . . . . . Actions | -11 -10 -10 -10 -9 --------- Run | Yrd Mat Min Exi Min Total 2872 | 64 147 1317 886 458 Wait 104 | 3 1 40 . 60 Move 2644 | 46 123 1214 882 379 Hop . | . . . . . Pick Up 21 | 1 9 8 2 1 Fast Attach 7 | 6 . . . 1 Attach 4 | . 1 . . 3 Detach . | . . . . . Swap 15 | . 3 9 . 3 Drop 5 | . 3 1 . 1 Fire 33 | 8 7 10 . 8 Melee 36 | . . 34 . 2 Ram . | . . . . . Kick . | . . . . . Crush 1 | . . 1 . . Escape Stasis . | . . . . . Rewire 2 | . . . 2 . Trap . | . . . . . Miscellaneous . | . . . . . Route ------- -11/Scrapyard -10/Materials -10/Mines (discovered 4 exits: [*Mat x2] / *Exi / [*Sub]) -10/Exiles (discovered 2 exits: [*Min x2]) -9/Mines History --------- Turn | Location | Event 3 | -11/Scrapyard | Discovered new exit (range 16) 99 | -11/Scrapyard | Entered Materials 179 | -10/Materials | Discovered new exit (range 10) 308 | -10/Materials | Build established: Mutant 328 | -10/Materials | Identified exit to Mines 328 | -10/Materials | Entered Mines 468 | -10/Mines | Discovered new exit (range 12) 647 | -10/Mines | Learned location of Storage (-7) 678 | -10/Mines | A weapon hastily lodged in a ceiling crevice suddenly fell to the ground 842 | -10/Mines | Learned location of Zion (-7) 843 | -10/Mines | Discovered new exit (range 5) 964 | -10/Mines | YI-UF0 nonchalantly dropped a Grenade Launcher on the ground 1122 | -10/Mines | Received a Mining Laser from a helpful Derelict 1258 | -10/Mines | Deemed a non-threat by the Exiles lab entrance 1258 | -10/Mines | Discovered new exit (range 5) 1425 | -10/Mines | Discovered new exit (range 6) 2466 | -10/Mines | Entered Exiles 2503 | -10/Exiles | Met 8R-AWN 2532 | -10/Exiles | Met EX-HEX 2594 | -10/Exiles | Met EX-DEC 2720 | -10/Exiles | Discovered new exit (range 12) 2891 | -10/Exiles | Met EX-BIN 3031 | -10/Exiles | Aligned with FarCom system 3032 | -10/Exiles | Given EX-Vault access code 3069 | -10/Exiles | Opened EX-Vault 3082 | -10/Exiles | Found Gui. Plasma Cannon 3116 | -10/Exiles | Warned to stay clear of 0b10 Research branches 3299 | -10/Exiles | Discovered new exit (range 14) 3475 | -10/Exiles | Visited The Gauntlet 3882 | -10/Exiles | Left Exiles lab with Gui. Plasma Cannon 3882 | -10/Exiles | Entered Mines 4278 | -9/Mines | Found a hidden stash of uninstalled traps 4523 | -9/Mines | Assembled infested the area 4580 | -9/Mines | Core integrity fell below 50% 4591 | -9/Mines | Destroyed by D-53 Grenadier with Mini Grenade Launcher Last Messages --------------- 04567_ as-06309 destroyed. 04567_ as-82040 destroyed. 04571_ as-30040 destroyed. 04571_ as-76257 destroyed. 04573_ as-13053 destroyed. 04575_ Lgt. Treads destroyed. 04579_ The unstable cave ceiling collapses. 04585_ U-05 Engineer builds a Wall. 04585_ Grenade Launcher destroyed. 04585_ Seismic Detector destroyed. 04585_ Laser Drill disabled. 04585_ U-05 Engineer lays Concrete. 04586_ The unstable cave ceiling collapses. 04586_ U-05 Engineer lays Concrete. 04588_ U-05 Engineer builds a Wall. 04589_ The unstable cave ceiling collapses. 04589_ Autogun destroyed. 04589_ Lgt. Treads destroyed. 04589_ Laser Drill disabled. 04590_ The unstable cave ceiling collapses. Map ----- +----------------------------------------------------+ | ?????????????????????????????????????????????????? | | ?????????????????????????????????????????????????? | | ?????????????????????????????????????????????????? | | ?????????????????????????????????????????????????? | | ?????????????????????????????????????????????????? | | ?????????????????????????????????????????????????? | | ?????????????????????????????????????????????????? | | ?????????????????????????????????????????????????? | | ?????????????????????????????????????????????????? | | ????????? ???????????????????????????????????????? | | ???????#%= ??????????????? ??????????????????????? | | ???????#= ??????????????? ??????????????????????? | | ???????? ??????????????? ?????????????????????? | | ????????# %??????????????? ?????????????????????? | | ??????# #????????????? ?????????????????????? | | ?????##% #???????????$ #????????????????????? | | ?????# ??????????? #????????????????????? | | ?????# ???????### #######??????????????? | | ?????? #??????# ???????????????? | | ???????# ??????# ???????????????? | | ?####?? #????# """ """ ???????????????? | | ## ##? ##?### """ """ #??????????????? | | # #?? ### """ #??????????????? | | ## d # #??????????????? | | #? # """ #??????????????? | | ##?# # d @ """ #??????????????? | | #!%##?# # # """ #??????????????? | | # =#?# ##????# # #??????????????? | | # #?# #?????# # #??????????????? | | # #?# #?????## # #??????????????? | | # #?# ####### # ##### ##??????????????? | | # ### ## ### ###### #???????????????? | | # % % ## ## ################? | | ###### % #? | | ?????## ## #### ## ############## #? | | ??????# ###### ###??# ## #????????????# #? | | ??????# ####????## ##????# ## #????????????# #? | | ?????## ##????????# ##?????# ## #??????###???# #? | | ?????# #?????????# #??????# ## #????## #???# #? | | ????# #????????# ######?# ## #???## #???## #? | | ????# #????????# #?# ## #?### #??## ## | | ????## ##???########## #?# ## ### #??# # | | ?????####??### ##??## ### ## #### # | | ??????????## #??# ## #### ## # | | ??????????# !=!#??# #?## ## | | ???####???# %#???# #### #? | | ??## ##??# ##### ### ## | | ??# ##?## ### # | | ??# #### ### | | ?## ## ####### | +----------------------------------------------------+ Best States ------------- Heat Dissipation 25 Energy Generation 10 Energy Capacity 250 Matter Stores 300 Matter Capacity 300 Sight Range 16 Terrain Scan Density 10 Evasion (%) 40 Recoil Reduction 2 Item Schematics ----------------- None Robot Schematics ------------------ None Fabricated ------------ Nothing Alien Tech Used ----------------- None Achievements -------------- None Challenges ------------ None Game ------ Seed DirtyCarbideDatajack Manual? 0 Play Time 00:28:51 Cumulative 58.9 hours Start 2024.04.19 @ 10:24:56 End 2024.04.19 @ 10:53:46 Sessions 1 Manual Loads 0 Difficulty Rogue Special Mode None Game No. 58 Rogue 58 Adventurer 0 Explorer 0 Win Type - Total 0 Types 0/0/0/0/0/0/0/0/0 Lore% 30 Gallery% 47 Achievement% 32 Wizard Run 0 Options --------- Layout 0 ASCII 0 Keyboard 0 Movement Mouse Keybinds 0 Fullscreen 2 Font 24/Smallcaps Map View 183x50 Zoom Use 0% Tactical HUD 1 Map Filters NONE Filters NONE Steam 0 RUN: 9dadd1d0-e805-4143-a34f-4b7085f824c4